Department family,Entity,Date,Expense Type,Expense area,Supplier,Transaction number,AP Amount (�)
Department of Health,NHS Barnsley CCG,31/01/2018,Clinical&Medical-Commercial Sector,LEARNING DIFFICULTIES,ASC HEALTHCARE LTD,20575699,"46,119.14 "
Department of Health,NHS Barnsley CCG,31/01/2018,C&M-APMS Contract Value,PRC DELEGATED CO-COMMISSIONING,BARNSLEY HEALTHCARE FEDERATION,20370780,"25,652.23 "
Department of Health,NHS Barnsley CCG,31/01/2018,C&M-APMS OOH Opt Outs,PRC DELEGATED CO-COMMISSIONING,BARNSLEY HEALTHCARE FEDERATION,20370780,0.05 
Department of Health,NHS Barnsley CCG,31/01/2018,C&M-APMS Prem Actual Rent,PRC DELEGATED CO-COMMISSIONING,BARNSLEY HEALTHCARE FEDERATION,20370780,"1,310.42 "
Department of Health,NHS Barnsley CCG,31/01/2018,C&M-PMS Prem Actual Rent,PRC DELEGATED CO-COMMISSIONING,BARNSLEY HEALTHCARE FEDERATION,20370780,"1,310.42 "
Department of Health,NHS Barnsley CCG,31/01/2018,C&M-PMS QOF Aspiration,PRC DELEGATED CO-COMMISSIONING,BARNSLEY HEALTHCARE FEDERATION,20370780,"2,442.47 "
Department of Health,NHS Barnsley CCG,31/01/2018,C&M-APMS Contract Value,PRC DELEGATED CO-COMMISSIONING,BARNSLEY HEALTHCARE FEDERATION,20370782,"30,626.61 "
Department of Health,NHS Barnsley CCG,31/01/2018,C&M-APMS Prem Actual Rent,PRC DELEGATED CO-COMMISSIONING,BARNSLEY HEALTHCARE FEDERATION,20370782,"2,150.00 "
Department of Health,NHS Barnsley CCG,31/01/2018,C&M-APMS Prem Healthcentre Rent,PRC DELEGATED CO-COMMISSIONING,BARNSLEY HEALTHCARE FEDERATION,20370782,"7,057.88 "
Department of Health,NHS Barnsley CCG,31/01/2018,C&M-APMS Prem Rates,PRC DELEGATED CO-COMMISSIONING,BARNSLEY HEALTHCARE FEDERATION,20370782,478.00 
Department of Health,NHS Barnsley CCG,31/01/2018,C&M-PMS Prem Actual Rent,PRC DELEGATED CO-COMMISSIONING,BARNSLEY HEALTHCARE FEDERATION,20370782,"2,150.00 "
Department of Health,NHS Barnsley CCG,31/01/2018,C&M-PMS Prem Healthcentre Rent,PRC DELEGATED CO-COMMISSIONING,BARNSLEY HEALTHCARE FEDERATION,20370782,"6,795.48 "
Department of Health,NHS Barnsley CCG,31/01/2018,C&M-PMS QOF Aspiration,PRC DELEGATED CO-COMMISSIONING,BARNSLEY HEALTHCARE FEDERATION,20370782,"2,184.66 "
Department of Health,NHS Barnsley CCG,31/01/2018,C&M-APMS Contract Value,PRC DELEGATED CO-COMMISSIONING,BARNSLEY HEALTHCARE FEDERATION,20370784,"27,758.98 "
Department of Health,NHS Barnsley CCG,31/01/2018,C&M-APMS OOH Opt Outs,PRC DELEGATED CO-COMMISSIONING,BARNSLEY HEALTHCARE FEDERATION,20370784,11.91 
Department of Health,NHS Barnsley CCG,31/01/2018,C&M-APMS Prem Actual Rent,PRC DELEGATED CO-COMMISSIONING,BARNSLEY HEALTHCARE FEDERATION,20370784,"6,200.00 "
Department of Health,NHS Barnsley CCG,31/01/2018,C&M-APMS Prem Rates,PRC DELEGATED CO-COMMISSIONING,BARNSLEY HEALTHCARE FEDERATION,20370784,"1,444.00 "
Department of Health,NHS Barnsley CCG,31/01/2018,C&M-PMS DES Learn Dsblty Hlth Chk,PRC DELEGATED CO-COMMISSIONING,BARNSLEY HEALTHCARE FEDERATION,20370784,140.00 
Department of Health,NHS Barnsley CCG,31/01/2018,C&M-PMS Prem Actual Rent,PRC DELEGATED CO-COMMISSIONING,BARNSLEY HEALTHCARE FEDERATION,20370784,"6,200.00 "
Department of Health,NHS Barnsley CCG,31/01/2018,C&M-PMS QOF Aspiration,PRC DELEGATED CO-COMMISSIONING,BARNSLEY HEALTHCARE FEDERATION,20370784,"2,549.33 "
Department of Health,NHS Barnsley CCG,31/01/2018,Programme Support Costs,GP FORWARD VIEW,BARNSLEY HEALTHCARE FEDERATION,20440450,"66,000.00 "
Department of Health,NHS Barnsley CCG,31/01/2018,Clinical&Medical-Commercial Sector,OUT OF HOURS,BARNSLEY HEALTHCARE FEDERATION,20575693,"115,909.00 "
Department of Health,NHS Barnsley CCG,31/01/2018,Miscellaneous Expenditure (L9),PCTF Revenue,BARNSLEY HEALTHCARE FEDERATION,20575694,"127,632.91 "
Department of Health,NHS Barnsley CCG,31/01/2018,C&M-PMS Contract Value,PRC DELEGATED CO-COMMISSIONING,BARNSLEY HEALTHCARE FEDERATION CIC (GOLDTHORPE),20372778,"39,914.35 "
Department of Health,NHS Barnsley CCG,31/01/2018,C&M-PMS Out of Hours Opt Outs,PRC DELEGATED CO-COMMISSIONING,BARNSLEY HEALTHCARE FEDERATION CIC (GOLDTHORPE),20372778,7.08 
Department of Health,NHS Barnsley CCG,31/01/2018,C&M-PMS Prem Healthcentre Rent,PRC DELEGATED CO-COMMISSIONING,BARNSLEY HEALTHCARE FEDERATION CIC (GOLDTHORPE),20372778,"11,654.20 "
Department of Health,NHS Barnsley CCG,31/01/2018,C&M-PMS QOF Aspiration,PRC DELEGATED CO-COMMISSIONING,BARNSLEY HEALTHCARE FEDERATION CIC (GOLDTHORPE),20372778,"4,628.16 "
Department of Health,NHS Barnsley CCG,31/01/2018,Clinical&Medical-Voluntary Sector,HOSPICES,BARNSLEY HOSPICE,20386732,"397,271.52 "
Department of Health,NHS Barnsley CCG,31/01/2018,Hcare Srv Rec Fdtn Trust-CQUIN,ACUTE COMMISSIONING,BARNSLEY HOSPITAL NHS FOUNDATION TRUST,20386696,"52,159.00 "
Department of Health,NHS Barnsley CCG,31/01/2018,Hcare Srv Rec Fdtn Trust-CQUIN,ACUTE COMMISSIONING,BARNSLEY HOSPITAL NHS FOUNDATION TRUST,20386708,"52,159.00 "
Department of Health,NHS Barnsley CCG,31/01/2018,Hcare Srv Rec Fdtn Trust-CQUIN,ACUTE COMMISSIONING,BARNSLEY HOSPITAL NHS FOUNDATION TRUST,20386710,"52,159.00 "
Department of Health,NHS Barnsley CCG,31/01/2018,Hcare Srv Rec Fdtn Trust-CQUIN,ACUTE COMMISSIONING,BARNSLEY HOSPITAL NHS FOUNDATION TRUST,20386716,"52,159.00 "
Department of Health,NHS Barnsley CCG,31/01/2018,Hcare Srv Rec Fdtn Trust-CQUIN,ACUTE COMMISSIONING,BARNSLEY HOSPITAL NHS FOUNDATION TRUST,20387765,"52,284.00 "
Department of Health,NHS Barnsley CCG,31/01/2018,Telecoms-Data lines,PRIMARY CARE IT,BARNSLEY HOSPITAL NHS FOUNDATION TRUST,20422864,"30,442.87 "
Department of Health,NHS Barnsley CCG,31/12/2017,Hcare Srv Rec Fdtn Trust-CQUIN,ACUTE COMMISSIONING,BARNSLEY HOSPITAL NHS FOUNDATION TRUST,20262129,"105,448.00 "
Department of Health,NHS Barnsley CCG,31/12/2017,Hcare Srv Rec Fdtn Trust-Contract Baseline,ACUTE COMMISSIONING,BARNSLEY HOSPITAL NHS FOUNDATION TRUST,20262129,"5,563,102.50 "
Department of Health,NHS Barnsley CCG,31/12/2017,Hcare Srv Rec Fdtn Trust-CQUIN,ACUTE COMMISSIONING,BARNSLEY HOSPITAL NHS FOUNDATION TRUST,20262130,"8,678.00 "
Department of Health,NHS Barnsley CCG,31/12/2017,Hcare Srv Rec Fdtn Trust-Contract Baseline,ACUTE COMMISSIONING,BARNSLEY HOSPITAL NHS FOUNDATION TRUST,20262130,"562,297.00 "
Department of Health,NHS Barnsley CCG,31/01/2018,Chrgs from SLA,COMMISSIONING,BARNSLEY METROPOLITAN BOROUGH COUNCIL,20387773,"16,669.00 "
Department of Health,NHS Barnsley CCG,31/01/2018,Clinical&Medical-Othe Public Sector,COMMISSIONING - NON ACUTE,BARNSLEY METROPOLITAN BOROUGH COUNCIL,20387773,"358,767.00 "
Department of Health,NHS Barnsley CCG,31/01/2018,Clinical&Medical-Othe Public Sector,COMMUNITY SERVICES,BARNSLEY METROPOLITAN BOROUGH COUNCIL,20387773,"15,784.00 "
Department of Health,NHS Barnsley CCG,31/01/2018,Clinical&Medical-Othe Public Sector,MENTAL HEALTH SERVICES - OTHER,BARNSLEY METROPOLITAN BOROUGH COUNCIL,20387773,"9,883.00 "
Department of Health,NHS Barnsley CCG,31/01/2018,Clinical&Medical-Voluntary Sector,CHILD AND ADOLESCENT MENTAL HEALTH,BARNSLEY METROPOLITAN BOROUGH COUNCIL,20387773,"17,875.00 "
Department of Health,NHS Barnsley CCG,31/01/2018,Expenditure on Drugs Action Team,MENTAL HEALTH SERVICES - SPECIALIST SERVICES,BARNSLEY METROPOLITAN BOROUGH COUNCIL,20387773,"41,667.00 "
Department of Health,NHS Barnsley CCG,31/01/2018,GROSSRECOVEMPBEN - SALARIES & WAGES,COLLABORATIVE COMMISSIONING,BARNSLEY METROPOLITAN BOROUGH COUNCIL,20387773,"(5,219.00)"
Department of Health,NHS Barnsley CCG,31/01/2018,Local AuthorityRevenue-Non-Contract,COMMUNITY SERVICES,BARNSLEY METROPOLITAN BOROUGH COUNCIL,20387773,"(2,663.00)"
Department of Health,NHS Barnsley CCG,31/01/2018,Other professional fees,CONTINUING HEALTHCARE ASSESSMENT & SUPPORT,BARNSLEY METROPOLITAN BOROUGH COUNCIL,20387773,500.00 
Department of Health,NHS Barnsley CCG,31/01/2018,Participation Fees,COMMUNITY SERVICES,BARNSLEY METROPOLITAN BOROUGH COUNCIL,20387773,"11,750.00 "
Department of Health,NHS Barnsley CCG,31/01/2018,Services From Local Authorities,COMMISSIONING - NON ACUTE,BARNSLEY METROPOLITAN BOROUGH COUNCIL,20387773,"6,304.00 "
Department of Health,NHS Barnsley CCG,31/01/2018,Soc Care-Other Soc Care,COMMUNITY SERVICES,BARNSLEY METROPOLITAN BOROUGH COUNCIL,20387773,"121,122.00 "
Department of Health,NHS Barnsley CCG,31/01/2018,Soc Care-Re-ablement services,COMMUNITY SERVICES,BARNSLEY METROPOLITAN BOROUGH COUNCIL,20387773,"192,250.00 "
Department of Health,NHS Barnsley CCG,31/01/2018,Social Care-Res Long Stay Exp,COMMUNITY SERVICES,BARNSLEY METROPOLITAN BOROUGH COUNCIL,20387773,"412,082.00 "
Department of Health,NHS Barnsley CCG,31/01/2018,Social Care-Res Short Stay Exp,COMMUNITY SERVICES,BARNSLEY METROPOLITAN BOROUGH COUNCIL,20387773,"67,500.00 "
Department of Health,NHS Barnsley CCG,31/01/2018,Clinical&Medical-Othe Public Sector,Mental Health Services - S117 Mental Health,BARNSLEY METROPOLITAN BOROUGH COUNCIL,20618732,"32,800.00 "
Department of Health,NHS Barnsley CCG,31/01/2018,Clinical&Medical-Othe Public Sector,Mental Health Services - S117 Mental Health,BARNSLEY METROPOLITAN BOROUGH COUNCIL,20618738,"53,317.96 "
Department of Health,NHS Barnsley CCG,31/01/2018,Clinical&Medical-Othe Public Sector,Learning Difficulties - S117,BARNSLEY METROPOLITAN BOROUGH COUNCIL,20620801,"45,570.87 "
Department of Health,NHS Barnsley CCG,31/01/2018,Clinical&Medical-Othe Public Sector,Learning Difficulties - S117,BARNSLEY METROPOLITAN BOROUGH COUNCIL,20620964,"(74,389.28)"
Department of Health,NHS Barnsley CCG,31/01/2018,Chrgs from SLA,COMMISSIONING,BARNSLEY METROPOLITAN BOROUGH COUNCIL,20687460,"16,668.00 "
Department of Health,NHS Barnsley CCG,31/01/2018,Clinical&Medical-Othe Public Sector,CHILD AND ADOLESCENT MENTAL HEALTH,BARNSLEY METROPOLITAN BOROUGH COUNCIL,20687460,"17,875.00 "
Department of Health,NHS Barnsley CCG,31/01/2018,Clinical&Medical-Othe Public Sector,COMMISSIONING - NON ACUTE,BARNSLEY METROPOLITAN BOROUGH COUNCIL,20687460,"358,767.00 "
Department of Health,NHS Barnsley CCG,31/01/2018,Clinical&Medical-Othe Public Sector,COMMUNITY SERVICES,BARNSLEY METROPOLITAN BOROUGH COUNCIL,20687460,"15,784.00 "
Department of Health,NHS Barnsley CCG,31/01/2018,Clinical&Medical-Othe Public Sector,MENTAL HEALTH SERVICES - OTHER,BARNSLEY METROPOLITAN BOROUGH COUNCIL,20687460,"9,883.00 "
Department of Health,NHS Barnsley CCG,31/01/2018,Expenditure on Drugs Action Team,MENTAL HEALTH SERVICES - SPECIALIST SERVICES,BARNSLEY METROPOLITAN BOROUGH COUNCIL,20687460,"41,667.00 "
Department of Health,NHS Barnsley CCG,31/01/2018,GROSSRECOVEMPBEN - SALARIES & WAGES,COLLABORATIVE COMMISSIONING,BARNSLEY METROPOLITAN BOROUGH COUNCIL,20687460,"(5,219.00)"
Department of Health,NHS Barnsley CCG,31/01/2018,Local AuthorityRevenue-Non-Contract,COMMUNITY SERVICES,BARNSLEY METROPOLITAN BOROUGH COUNCIL,20687460,"(2,663.00)"
Department of Health,NHS Barnsley CCG,31/01/2018,Participation Fees,COMMUNITY SERVICES,BARNSLEY METROPOLITAN BOROUGH COUNCIL,20687460,"11,750.00 "
Department of Health,NHS Barnsley CCG,31/01/2018,Services From Local Authorities,COMMISSIONING - NON ACUTE,BARNSLEY METROPOLITAN BOROUGH COUNCIL,20687460,"6,304.00 "
Department of Health,NHS Barnsley CCG,31/01/2018,Soc Care-Other Soc Care,COMMUNITY SERVICES,BARNSLEY METROPOLITAN BOROUGH COUNCIL,20687460,"121,122.00 "
Department of Health,NHS Barnsley CCG,31/01/2018,Soc Care-Re-ablement services,COMMUNITY SERVICES,BARNSLEY METROPOLITAN BOROUGH COUNCIL,20687460,"192,250.00 "
Department of Health,NHS Barnsley CCG,31/01/2018,Social Care-Res Long Stay Exp,COMMUNITY SERVICES,BARNSLEY METROPOLITAN BOROUGH COUNCIL,20687460,"412,083.00 "
Department of Health,NHS Barnsley CCG,31/01/2018,Social Care-Res Short Stay Exp,COMMUNITY SERVICES,BARNSLEY METROPOLITAN BOROUGH COUNCIL,20687460,"67,500.00 "
Department of Health,NHS Barnsley CCG,31/01/2018,Clinical&Medical-Commercial Sector,ACUTE COMMISSIONING,BMI HEALTHCARE COLLECTIONS,20595978,"46,550.44 "
Department of Health,NHS Barnsley CCG,31/12/2017,Clinical&Medical-Commercial Sector,ACUTE COMMISSIONING,BMI HEALTHCARE COLLECTIONS,20251303,"46,550.44 "
Department of Health,NHS Barnsley CCG,31/01/2018,Clinical&Medical-Commercial Sector,ACUTE COMMISSIONING,CLAREMONT HOSPITAL,20387852,"54,938.00 "
Department of Health,NHS Barnsley CCG,31/12/2017,Voids and Subsidies,RECHARGES NHS PROPERTY SERVICES LTD,COMMUNITY HEALTH PARTNERSHIPS LTD,20251241,"52,951.27 "
Department of Health,NHS Barnsley CCG,31/01/2018,Soc Care-Bed-Based Int Care Servs,INTERMEDIATE CARE,CROWN CARE (IV) LTD,20595954,"26,792.86 "
Department of Health,NHS Barnsley CCG,31/01/2018,C&M-GMS DES Minor Surgery,PRC DELEGATED CO-COMMISSIONING,NHS BARNSLEY CCG GP PRACTICE,20625921,"4,943.92 "
Department of Health,NHS Barnsley CCG,31/01/2018,C&M-GMS Global Sum,PRC DELEGATED CO-COMMISSIONING,NHS BARNSLEY CCG GP PRACTICE,20625921,"78,966.58 "
Department of Health,NHS Barnsley CCG,31/01/2018,C&M-GMS Prem Healthcentre Rent,PRC DELEGATED CO-COMMISSIONING,NHS BARNSLEY CCG GP PRACTICE,20625921,"25,297.00 "
Department of Health,NHS Barnsley CCG,31/01/2018,C&M-GMS QOF Aspiration,PRC DELEGATED CO-COMMISSIONING,NHS BARNSLEY CCG GP PRACTICE,20625921,"7,839.58 "
Department of Health,NHS Barnsley CCG,31/01/2018,ME - GMS GP Prior Year ERs,PRC DELEGATED CO-COMMISSIONING,NHS BARNSLEY CCG GP PRACTICE,20625921,"1,010.47 "
Department of Health,NHS Barnsley CCG,31/01/2018,ME-GMS GP Prior Year EEs,PRC DELEGATED CO-COMMISSIONING,NHS BARNSLEY CCG GP PRACTICE,20625921,"1,851.83 "
Department of Health,NHS Barnsley CCG,31/01/2018,C&M-PMS Contract Value,PRC DELEGATED CO-COMMISSIONING,NHS BARNSLEY CCG GP PRACTICE,20370786,"48,259.80 "
Department of Health,NHS Barnsley CCG,31/01/2018,C&M-PMS Out of Hours Opt Outs,PRC DELEGATED CO-COMMISSIONING,NHS BARNSLEY CCG GP PRACTICE,20370786,248.86 
Department of Health,NHS Barnsley CCG,31/01/2018,C&M-PMS Prem Notional Rent,PRC DELEGATED CO-COMMISSIONING,NHS BARNSLEY CCG GP PRACTICE,20370786,"24,437.50 "
Department of Health,NHS Barnsley CCG,31/01/2018,C&M-PMS Prem Rates,PRC DELEGATED CO-COMMISSIONING,NHS BARNSLEY CCG GP PRACTICE,20370786,"2,182.00 "
Department of Health,NHS Barnsley CCG,31/01/2018,C&M-PMS QOF Aspiration,PRC DELEGATED CO-COMMISSIONING,NHS BARNSLEY CCG GP PRACTICE,20370786,"5,260.11 "
Department of Health,NHS Barnsley CCG,31/12/2017,Hcare Srv Rec Fdtn Trust-CQUIN,ACUTE COMMISSIONING,DONCASTER AND BASSETLAW HOSPITALS NHS FOUNDATION TRUST,20262128,"5,270.00 "
Department of Health,NHS Barnsley CCG,31/12/2017,Hcare Srv Rec Fdtn Trust-Contract Baseline,ACUTE COMMISSIONING,DONCASTER AND BASSETLAW HOSPITALS NHS FOUNDATION TRUST,20262128,"517,883.00 "
Department of Health,NHS Barnsley CCG,31/01/2018,C&M-PMS Contract Value,PRC DELEGATED CO-COMMISSIONING,NHS BARNSLEY CCG GP PRACTICE,20370757,"88,976.24 "
Department of Health,NHS Barnsley CCG,31/01/2018,C&M-PMS Out of Hours Opt Outs,PRC DELEGATED CO-COMMISSIONING,NHS BARNSLEY CCG GP PRACTICE,20370757,48.89 
Department of Health,NHS Barnsley CCG,31/01/2018,C&M-PMS PCO Locum Adop/Pat/Mat,PRC DELEGATED CO-COMMISSIONING,NHS BARNSLEY CCG GP PRACTICE,20370757,"6,888.26 "
Department of Health,NHS Barnsley CCG,31/01/2018,C&M-PMS Prem Healthcentre Rent,PRC DELEGATED CO-COMMISSIONING,NHS BARNSLEY CCG GP PRACTICE,20370757,"20,733.65 "
Department of Health,NHS Barnsley CCG,31/01/2018,C&M-PMS Prem Notional Rent,PRC DELEGATED CO-COMMISSIONING,NHS BARNSLEY CCG GP PRACTICE,20370757,"1,987.50 "
Department of Health,NHS Barnsley CCG,31/01/2018,C&M-PMS Prem Rates,PRC DELEGATED CO-COMMISSIONING,NHS BARNSLEY CCG GP PRACTICE,20370757,289.00 
Department of Health,NHS Barnsley CCG,31/01/2018,C&M-PMS QOF Aspiration,PRC DELEGATED CO-COMMISSIONING,NHS BARNSLEY CCG GP PRACTICE,20370757,"10,231.70 "
Department of Health,NHS Barnsley CCG,31/01/2018,C&M-PMS Contract Value,PRC DELEGATED CO-COMMISSIONING,NHS BARNSLEY CCG GP PRACTICE,20370761,"51,026.64 "
Department of Health,NHS Barnsley CCG,31/01/2018,C&M-PMS Out of Hours Opt Outs,PRC DELEGATED CO-COMMISSIONING,NHS BARNSLEY CCG GP PRACTICE,20370761,1.33 
Department of Health,NHS Barnsley CCG,31/01/2018,C&M-PMS PCO Locum Adop/Pat/Mat,PRC DELEGATED CO-COMMISSIONING,NHS BARNSLEY CCG GP PRACTICE,20370761,"7,054.00 "
Department of Health,NHS Barnsley CCG,31/01/2018,C&M-PMS Prem Healthcentre Rent,PRC DELEGATED CO-COMMISSIONING,NHS BARNSLEY CCG GP PRACTICE,20370761,"21,557.02 "
Department of Health,NHS Barnsley CCG,31/01/2018,C&M-PMS QOF Aspiration,PRC DELEGATED CO-COMMISSIONING,NHS BARNSLEY CCG GP PRACTICE,20370761,"5,374.86 "
Department of Health,NHS Barnsley CCG,31/01/2018,C&M-GMS DES TPP QRISK,PRC DELEGATED CO-COMMISSIONING,NHS BARNSLEY CCG GP PRACTICE,20648900,32.50 
Department of Health,NHS Barnsley CCG,31/01/2018,C&M-GMS Global Sum,PRC DELEGATED CO-COMMISSIONING,NHS BARNSLEY CCG GP PRACTICE,20648900,"71,854.71 "
Department of Health,NHS Barnsley CCG,31/01/2018,C&M-GMS PCO Other,PRC DELEGATED CO-COMMISSIONING,NHS BARNSLEY CCG GP PRACTICE,20648900,452.60 
Department of Health,NHS Barnsley CCG,31/01/2018,C&M-GMS Prem Notional Rent,PRC DELEGATED CO-COMMISSIONING,NHS BARNSLEY CCG GP PRACTICE,20648900,"4,558.08 "
Department of Health,NHS Barnsley CCG,31/01/2018,C&M-GMS Prem Rates,PRC DELEGATED CO-COMMISSIONING,NHS BARNSLEY CCG GP PRACTICE,20648900,855.00 
Department of Health,NHS Barnsley CCG,31/01/2018,C&M-GMS QOF Aspiration,PRC DELEGATED CO-COMMISSIONING,NHS BARNSLEY CCG GP PRACTICE,20648900,"8,873.87 "
Department of Health,NHS Barnsley CCG,31/01/2018,C&M-GMS DES Learn Dsblty Hlth Chk,PRC DELEGATED CO-COMMISSIONING,NHS BARNSLEY CCG GP PRACTICE,20625930,"2,660.00 "
Department of Health,NHS Barnsley CCG,31/01/2018,C&M-GMS DES Minor Surgery,PRC DELEGATED CO-COMMISSIONING,NHS BARNSLEY CCG GP PRACTICE,20625930,"4,773.44 "
Department of Health,NHS Barnsley CCG,31/01/2018,C&M-GMS Global Sum,PRC DELEGATED CO-COMMISSIONING,NHS BARNSLEY CCG GP PRACTICE,20625930,"88,736.97 "
Department of Health,NHS Barnsley CCG,31/01/2018,C&M-GMS Prem Actual Rent,PRC DELEGATED CO-COMMISSIONING,NHS BARNSLEY CCG GP PRACTICE,20625930,"4,253.50 "
Department of Health,NHS Barnsley CCG,31/01/2018,C&M-GMS Prem Healthcentre Rent,PRC DELEGATED CO-COMMISSIONING,NHS BARNSLEY CCG GP PRACTICE,20625930,"3,289.55 "
Department of Health,NHS Barnsley CCG,31/01/2018,C&M-GMS Prem Notional Rent,PRC DELEGATED CO-COMMISSIONING,NHS BARNSLEY CCG GP PRACTICE,20625930,"1,572.92 "
Department of Health,NHS Barnsley CCG,31/01/2018,C&M-GMS Prem Rates,PRC DELEGATED CO-COMMISSIONING,NHS BARNSLEY CCG GP PRACTICE,20625930,"1,209.00 "
Department of Health,NHS Barnsley CCG,31/01/2018,C&M-GMS QOF Aspiration,PRC DELEGATED CO-COMMISSIONING,NHS BARNSLEY CCG GP PRACTICE,20625930,"8,682.82 "
Department of Health,NHS Barnsley CCG,31/01/2018,C&M-PMS GP Statutory Levy,PRC DELEGATED CO-COMMISSIONING,NHS BARNSLEY CCG GP PRACTICE,20370764,(566.98)
Department of Health,NHS Barnsley CCG,31/01/2018,C&M-PMS Out of Hours Opt Outs,PRC DELEGATED CO-COMMISSIONING,NHS BARNSLEY CCG GP PRACTICE,20370764,"(6,106.76)"
Department of Health,NHS Barnsley CCG,31/01/2018,C&M-PMS Voluntary Levy,PRC DELEGATED CO-COMMISSIONING,NHS BARNSLEY CCG GP PRACTICE,20370764,(99.17)
Department of Health,NHS Barnsley CCG,31/01/2018,ME - PMS TPS Added Years Adj EEs,PRC DELEGATED CO-COMMISSIONING,NHS BARNSLEY CCG GP PRACTICE,20370764,(610.96)
Department of Health,NHS Barnsley CCG,31/01/2018,ME-PMS GP Pension EEs-PMS,PRC DELEGATED CO-COMMISSIONING,NHS BARNSLEY CCG GP PRACTICE,20370764,"(14,526.79)"
Department of Health,NHS Barnsley CCG,31/01/2018,ME-PMS GP Pension ERs Adjs - PMS,PRC DELEGATED CO-COMMISSIONING,NHS BARNSLEY CCG GP PRACTICE,20370764,"(15,370.39)"
Department of Health,NHS Barnsley CCG,31/01/2018,C&M-PMS Contract Value,PRC DELEGATED CO-COMMISSIONING,NHS BARNSLEY CCG GP PRACTICE,20370765,"128,969.01 "
Department of Health,NHS Barnsley CCG,31/01/2018,C&M-PMS Funding Differential Review,PRC DELEGATED CO-COMMISSIONING,NHS BARNSLEY CCG GP PRACTICE,20370765,94.00 
Department of Health,NHS Barnsley CCG,31/01/2018,C&M-PMS PCO Locum Adop/Pat/Mat,PRC DELEGATED CO-COMMISSIONING,NHS BARNSLEY CCG GP PRACTICE,20370765,"7,006.11 "
Department of Health,NHS Barnsley CCG,31/01/2018,C&M-PMS Prem Actual Rent,PRC DELEGATED CO-COMMISSIONING,NHS BARNSLEY CCG GP PRACTICE,20370765,"24,600.00 "
Department of Health,NHS Barnsley CCG,31/01/2018,C&M-PMS Prem Notional Rent,PRC DELEGATED CO-COMMISSIONING,NHS BARNSLEY CCG GP PRACTICE,20370765,"6,333.33 "
Department of Health,NHS Barnsley CCG,31/01/2018,C&M-PMS Prem Rates,PRC DELEGATED CO-COMMISSIONING,NHS BARNSLEY CCG GP PRACTICE,20370765,"1,659.20 "
Department of Health,NHS Barnsley CCG,31/01/2018,C&M-PMS QOF Aspiration,PRC DELEGATED CO-COMMISSIONING,NHS BARNSLEY CCG GP PRACTICE,20370765,"14,324.80 "
Department of Health,NHS Barnsley CCG,31/01/2018,C&M-PMS Cost of Drugs -Dispensing,LOCAL ENHANCED SERVICES,NHS BARNSLEY CCG GP PRACTICE,20652848,"(73,506.38)"
Department of Health,NHS Barnsley CCG,31/01/2018,C&M-PMS Prsc Chrgs Cll&Rmttd by GPs,PRC DELEGATED CO-COMMISSIONING,NHS BARNSLEY CCG GP PRACTICE,20652848,"(4,222.60)"
Department of Health,NHS Barnsley CCG,31/01/2018,C&M-PMS Cost of Drugs -Dispensing,LOCAL ENHANCED SERVICES,NHS BARNSLEY CCG GP PRACTICE,20652850,"149,986.93 "
Department of Health,NHS Barnsley CCG,31/01/2018,C&M-PMS Prof fees Dispensing,PRC DELEGATED CO-COMMISSIONING,NHS BARNSLEY CCG GP PRACTICE,20652850,"24,231.45 "
Department of Health,NHS Barnsley CCG,31/01/2018,C&M-PMS Prsc Chrgs Cll&Rmttd by GPs,LOCAL ENHANCED SERVICES,NHS BARNSLEY CCG GP PRACTICE,20652850,"4,222.60 "
Department of Health,NHS Barnsley CCG,31/01/2018,C&M-GMS DES Minor Surgery,PRC DELEGATED CO-COMMISSIONING,NHS BARNSLEY CCG GP PRACTICE,20629859,85.24 
Department of Health,NHS Barnsley CCG,31/01/2018,C&M-GMS Global Sum,PRC DELEGATED CO-COMMISSIONING,NHS BARNSLEY CCG GP PRACTICE,20629859,"20,637.16 "
Department of Health,NHS Barnsley CCG,31/01/2018,C&M-GMS MPIG Correction Factor,PRC DELEGATED CO-COMMISSIONING,NHS BARNSLEY CCG GP PRACTICE,20629859,607.19 
Department of Health,NHS Barnsley CCG,31/01/2018,C&M-GMS Prem Healthcentre Rent,PRC DELEGATED CO-COMMISSIONING,NHS BARNSLEY CCG GP PRACTICE,20629859,"2,198.57 "
Department of Health,NHS Barnsley CCG,31/01/2018,C&M-GMS QOF Aspiration,PRC DELEGATED CO-COMMISSIONING,NHS BARNSLEY CCG GP PRACTICE,20629859,"2,409.31 "
Department of Health,NHS Barnsley CCG,31/01/2018,C&M-GMS DES Learn Dsblty Hlth Chk,PRC DELEGATED CO-COMMISSIONING,NHS BARNSLEY CCG GP PRACTICE,20625937,700.00 
Department of Health,NHS Barnsley CCG,31/01/2018,C&M-GMS Global Sum,PRC DELEGATED CO-COMMISSIONING,NHS BARNSLEY CCG GP PRACTICE,20625937,"38,787.56 "
Department of Health,NHS Barnsley CCG,31/01/2018,C&M-GMS Prem Actual Rent,PRC DELEGATED CO-COMMISSIONING,NHS BARNSLEY CCG GP PRACTICE,20625937,"9,212.50 "
Department of Health,NHS Barnsley CCG,31/01/2018,C&M-GMS Prem Notional Rent,PRC DELEGATED CO-COMMISSIONING,NHS BARNSLEY CCG GP PRACTICE,20625937,"1,562.50 "
Department of Health,NHS Barnsley CCG,31/01/2018,C&M-GMS Prem Rates,PRC DELEGATED CO-COMMISSIONING,NHS BARNSLEY CCG GP PRACTICE,20625937,"1,072.00 "
Department of Health,NHS Barnsley CCG,31/01/2018,C&M-GMS QOF Aspiration,PRC DELEGATED CO-COMMISSIONING,NHS BARNSLEY CCG GP PRACTICE,20625937,"4,292.81 "
Department of Health,NHS Barnsley CCG,31/01/2018,C&M-PMS Contract Value,PRC DELEGATED CO-COMMISSIONING,NHS BARNSLEY CCG GP PRACTICE,20370763,"39,273.48 "
Department of Health,NHS Barnsley CCG,31/01/2018,C&M-PMS Funding Differential Review,PRC DELEGATED CO-COMMISSIONING,NHS BARNSLEY CCG GP PRACTICE,20370763,"2,537.08 "
Department of Health,NHS Barnsley CCG,31/01/2018,C&M-PMS Out of Hours Opt Outs,PRC DELEGATED CO-COMMISSIONING,NHS BARNSLEY CCG GP PRACTICE,20370763,49.71 
Department of Health,NHS Barnsley CCG,31/01/2018,C&M-PMS Prem Healthcentre Rent,PRC DELEGATED CO-COMMISSIONING,NHS BARNSLEY CCG GP PRACTICE,20370763,"2,989.52 "
Department of Health,NHS Barnsley CCG,31/01/2018,C&M-PMS Prem Notional Rent,PRC DELEGATED CO-COMMISSIONING,NHS BARNSLEY CCG GP PRACTICE,20370763,"8,600.00 "
Department of Health,NHS Barnsley CCG,31/01/2018,C&M-PMS Prem Rates,PRC DELEGATED CO-COMMISSIONING,NHS BARNSLEY CCG GP PRACTICE,20370763,"1,030.00 "
Department of Health,NHS Barnsley CCG,31/01/2018,C&M-PMS Prem Water Rates,PRC DELEGATED CO-COMMISSIONING,NHS BARNSLEY CCG GP PRACTICE,20370763,216.24 
Department of Health,NHS Barnsley CCG,31/01/2018,C&M-PMS QOF Aspiration,PRC DELEGATED CO-COMMISSIONING,NHS BARNSLEY CCG GP PRACTICE,20370763,"2,711.68 "
Department of Health,NHS Barnsley CCG,31/01/2018,C&M-GMS DES Minor Surgery,PRC DELEGATED CO-COMMISSIONING,NHS BARNSLEY CCG GP PRACTICE,20648902,"6,691.34 "
Department of Health,NHS Barnsley CCG,31/01/2018,C&M-GMS DES TPP QRISK,PRC DELEGATED CO-COMMISSIONING,NHS BARNSLEY CCG GP PRACTICE,20648902,104.00 
Department of Health,NHS Barnsley CCG,31/01/2018,C&M-GMS Global Sum,PRC DELEGATED CO-COMMISSIONING,NHS BARNSLEY CCG GP PRACTICE,20648902,"103,474.84 "
Department of Health,NHS Barnsley CCG,31/01/2018,C&M-GMS Prem Notional Rent,PRC DELEGATED CO-COMMISSIONING,NHS BARNSLEY CCG GP PRACTICE,20648902,"6,333.33 "
Department of Health,NHS Barnsley CCG,31/01/2018,C&M-GMS Prem Rates,PRC DELEGATED CO-COMMISSIONING,NHS BARNSLEY CCG GP PRACTICE,20648902,"2,708.00 "
Department of Health,NHS Barnsley CCG,31/01/2018,C&M-GMS QOF Aspiration,PRC DELEGATED CO-COMMISSIONING,NHS BARNSLEY CCG GP PRACTICE,20648902,"11,180.37 "
Department of Health,NHS Barnsley CCG,31/01/2018,C&M-GMS Global Sum,PRC DELEGATED CO-COMMISSIONING,NHS BARNSLEY CCG GP PRACTICE,20625940,"96,569.79 "
Department of Health,NHS Barnsley CCG,31/01/2018,C&M-GMS Prem Notional Rent,PRC DELEGATED CO-COMMISSIONING,NHS BARNSLEY CCG GP PRACTICE,20625940,"13,500.00 "
Department of Health,NHS Barnsley CCG,31/01/2018,C&M-GMS Prem Rates,PRC DELEGATED CO-COMMISSIONING,NHS BARNSLEY CCG GP PRACTICE,20625940,"2,068.17 "
Department of Health,NHS Barnsley CCG,31/01/2018,C&M-GMS QOF Aspiration,PRC DELEGATED CO-COMMISSIONING,NHS BARNSLEY CCG GP PRACTICE,20625940,"9,956.81 "
Department of Health,NHS Barnsley CCG,31/01/2018,C&M-GMS GP Statutory Levy,PRC DELEGATED CO-COMMISSIONING,NHS BARNSLEY CCG GP PRACTICE,20648901,(395.49)
Department of Health,NHS Barnsley CCG,31/01/2018,C&M-GMS Voluntary Levy,PRC DELEGATED CO-COMMISSIONING,NHS BARNSLEY CCG GP PRACTICE,20648901,(69.18)
Department of Health,NHS Barnsley CCG,31/01/2018,ME - GMS GP Prior Year ERs,PRC DELEGATED CO-COMMISSIONING,NHS BARNSLEY CCG GP PRACTICE,20648901,"(1,930.50)"
Department of Health,NHS Barnsley CCG,31/01/2018,ME-GMS GP Pension EEs,PRC DELEGATED CO-COMMISSIONING,NHS BARNSLEY CCG GP PRACTICE,20648901,"(7,172.91)"
Department of Health,NHS Barnsley CCG,31/01/2018,ME-GMS GP Pension EEs Adjustments,PRC DELEGATED CO-COMMISSIONING,NHS BARNSLEY CCG GP PRACTICE,20648901,"(9,147.05)"
Department of Health,NHS Barnsley CCG,31/01/2018,ME-GMS GP Pension ERs Adjustments,PRC DELEGATED CO-COMMISSIONING,NHS BARNSLEY CCG GP PRACTICE,20648901,"(15,671.59)"
Department of Health,NHS Barnsley CCG,31/01/2018,ME-GMS GP Prior Year EEs,PRC DELEGATED CO-COMMISSIONING,NHS BARNSLEY CCG GP PRACTICE,20648901,"(1,822.50)"
Department of Health,NHS Barnsley CCG,31/01/2018,C&M-GMS DES Minor Surgery,PRC DELEGATED CO-COMMISSIONING,NHS BARNSLEY CCG GP PRACTICE,20625948,"3,409.60 "
Department of Health,NHS Barnsley CCG,31/01/2018,C&M-GMS Global Sum,PRC DELEGATED CO-COMMISSIONING,NHS BARNSLEY CCG GP PRACTICE,20625948,"90,404.86 "
Department of Health,NHS Barnsley CCG,31/01/2018,C&M-GMS Prem Healthcentre Rent,PRC DELEGATED CO-COMMISSIONING,NHS BARNSLEY CCG GP PRACTICE,20625948,"33,280.78 "
Department of Health,NHS Barnsley CCG,31/01/2018,C&M-GMS QOF Aspiration,PRC DELEGATED CO-COMMISSIONING,NHS BARNSLEY CCG GP PRACTICE,20625948,"9,868.55 "
Department of Health,NHS Barnsley CCG,31/01/2018,C&M-GMS DES Minor Surgery,PRC DELEGATED CO-COMMISSIONING,NHS BARNSLEY CCG GP PRACTICE,20625958,"2,599.82 "
Department of Health,NHS Barnsley CCG,31/01/2018,C&M-GMS Global Sum,PRC DELEGATED CO-COMMISSIONING,NHS BARNSLEY CCG GP PRACTICE,20625958,"77,518.84 "
Department of Health,NHS Barnsley CCG,31/01/2018,C&M-GMS Prem Actual Rent,PRC DELEGATED CO-COMMISSIONING,NHS BARNSLEY CCG GP PRACTICE,20625958,"41,186.25 "
Department of Health,NHS Barnsley CCG,31/01/2018,C&M-GMS Prem Rates,PRC DELEGATED CO-COMMISSIONING,NHS BARNSLEY CCG GP PRACTICE,20625958,"2,927.00 "
Department of Health,NHS Barnsley CCG,31/01/2018,C&M-GMS QOF Aspiration,PRC DELEGATED CO-COMMISSIONING,NHS BARNSLEY CCG GP PRACTICE,20625958,"10,562.04 "
Department of Health,NHS Barnsley CCG,31/01/2018,C&M-PMS Contract Value,PRC DELEGATED CO-COMMISSIONING,NHS BARNSLEY CCG GP PRACTICE,20370766,"(2,000.15)"
Department of Health,NHS Barnsley CCG,31/01/2018,C&M-PMS GP Statutory Levy,PRC DELEGATED CO-COMMISSIONING,NHS BARNSLEY CCG GP PRACTICE,20370766,(574.44)
Department of Health,NHS Barnsley CCG,31/01/2018,C&M-PMS Out of Hours Opt Outs,PRC DELEGATED CO-COMMISSIONING,NHS BARNSLEY CCG GP PRACTICE,20370766,"(6,760.94)"
Department of Health,NHS Barnsley CCG,31/01/2018,C&M-PMS Voluntary Levy,PRC DELEGATED CO-COMMISSIONING,NHS BARNSLEY CCG GP PRACTICE,20370766,(100.48)
Department of Health,NHS Barnsley CCG,31/01/2018,ME - PMS TPS Added Years Adj EEs,PRC DELEGATED CO-COMMISSIONING,NHS BARNSLEY CCG GP PRACTICE,20370766,(266.67)
Department of Health,NHS Barnsley CCG,31/01/2018,ME-PMS GP Pension EEs-PMS,PRC DELEGATED CO-COMMISSIONING,NHS BARNSLEY CCG GP PRACTICE,20370766,"(8,052.80)"
Department of Health,NHS Barnsley CCG,31/01/2018,ME-PMS GP Pension ERs Adjs - PMS,PRC DELEGATED CO-COMMISSIONING,NHS BARNSLEY CCG GP PRACTICE,20370766,"(8,852.85)"
Department of Health,NHS Barnsley CCG,31/01/2018,C&M-PMS Contract Value,PRC DELEGATED CO-COMMISSIONING,NHS BARNSLEY CCG GP PRACTICE,20370767,"138,371.63 "
Department of Health,NHS Barnsley CCG,31/01/2018,C&M-PMS Funding Differential Review,PRC DELEGATED CO-COMMISSIONING,NHS BARNSLEY CCG GP PRACTICE,20370767,203.75 
Department of Health,NHS Barnsley CCG,31/01/2018,C&M-PMS Out of Hours Opt Outs,PRC DELEGATED CO-COMMISSIONING,NHS BARNSLEY CCG GP PRACTICE,20370767,98.99 
Department of Health,NHS Barnsley CCG,31/01/2018,C&M-PMS PCO Locum Adop/Pat/Mat,PRC DELEGATED CO-COMMISSIONING,NHS BARNSLEY CCG GP PRACTICE,20370767,"6,060.00 "
Department of Health,NHS Barnsley CCG,31/01/2018,C&M-PMS PCO Other,PRC DELEGATED CO-COMMISSIONING,NHS BARNSLEY CCG GP PRACTICE,20370767,523.70 
Department of Health,NHS Barnsley CCG,31/01/2018,C&M-PMS Prem Notional Rent,PRC DELEGATED CO-COMMISSIONING,NHS BARNSLEY CCG GP PRACTICE,20370767,"11,166.67 "
Department of Health,NHS Barnsley CCG,31/01/2018,C&M-PMS Prem Rates,PRC DELEGATED CO-COMMISSIONING,NHS BARNSLEY CCG GP PRACTICE,20370767,"1,492.00 "
Department of Health,NHS Barnsley CCG,31/01/2018,C&M-PMS QOF Aspiration,PRC DELEGATED CO-COMMISSIONING,NHS BARNSLEY CCG GP PRACTICE,20370767,"10,469.27 "
Department of Health,NHS Barnsley CCG,31/01/2018,C&M-PMS Contract Value,PRC DELEGATED CO-COMMISSIONING,NHS BARNSLEY CCG GP PRACTICE,20370769,"94,158.32 "
Department of Health,NHS Barnsley CCG,31/01/2018,C&M-PMS PCO Other,PRC DELEGATED CO-COMMISSIONING,NHS BARNSLEY CCG GP PRACTICE,20370769,523.70 
Department of Health,NHS Barnsley CCG,31/01/2018,C&M-PMS Prem Actual Rent,PRC DELEGATED CO-COMMISSIONING,NHS BARNSLEY CCG GP PRACTICE,20370769,"12,708.33 "
Department of Health,NHS Barnsley CCG,31/01/2018,C&M-PMS Prem Rates,PRC DELEGATED CO-COMMISSIONING,NHS BARNSLEY CCG GP PRACTICE,20370769,"1,641.40 "
Department of Health,NHS Barnsley CCG,31/01/2018,C&M-PMS QOF Aspiration,PRC DELEGATED CO-COMMISSIONING,NHS BARNSLEY CCG GP PRACTICE,20370769,"10,713.50 "
Department of Health,NHS Barnsley CCG,31/01/2018,C&M-PMS Contract Value,PRC DELEGATED CO-COMMISSIONING,NHS BARNSLEY CCG GP PRACTICE,20370771,"83,989.21 "
Department of Health,NHS Barnsley CCG,31/01/2018,C&M-PMS Prem Actual Rent,PRC DELEGATED CO-COMMISSIONING,NHS BARNSLEY CCG GP PRACTICE,20370771,"8,566.67 "
Department of Health,NHS Barnsley CCG,31/01/2018,C&M-PMS Prem Rates,PRC DELEGATED CO-COMMISSIONING,NHS BARNSLEY CCG GP PRACTICE,20370771,"1,401.00 "
Department of Health,NHS Barnsley CCG,31/01/2018,C&M-PMS QOF Aspiration,PRC DELEGATED CO-COMMISSIONING,NHS BARNSLEY CCG GP PRACTICE,20370771,"7,978.34 "
Department of Health,NHS Barnsley CCG,31/01/2018,C&M-GMS DES Minor Surgery,PRC DELEGATED CO-COMMISSIONING,NHS BARNSLEY CCG GP PRACTICE,20625960,"1,108.12 "
Department of Health,NHS Barnsley CCG,31/01/2018,C&M-GMS Global Sum,PRC DELEGATED CO-COMMISSIONING,NHS BARNSLEY CCG GP PRACTICE,20625960,"55,515.73 "
Department of Health,NHS Barnsley CCG,31/01/2018,C&M-GMS Prem Healthcentre Rent,PRC DELEGATED CO-COMMISSIONING,NHS BARNSLEY CCG GP PRACTICE,20625960,"21,594.09 "
Department of Health,NHS Barnsley CCG,31/01/2018,C&M-GMS QOF Aspiration,PRC DELEGATED CO-COMMISSIONING,NHS BARNSLEY CCG GP PRACTICE,20625960,"6,288.65 "
Department of Health,NHS Barnsley CCG,31/01/2018,C&M-PMS Contract Value,PRC DELEGATED CO-COMMISSIONING,NHS BARNSLEY CCG GP PRACTICE,20370773,"99,023.49 "
Department of Health,NHS Barnsley CCG,31/01/2018,C&M-PMS Out of Hours Opt Outs,PRC DELEGATED CO-COMMISSIONING,NHS BARNSLEY CCG GP PRACTICE,20370773,19.00 
Department of Health,NHS Barnsley CCG,31/01/2018,C&M-PMS PCO Locum Adop/Pat/Mat,PRC DELEGATED CO-COMMISSIONING,NHS BARNSLEY CCG GP PRACTICE,20370773,"1,352.00 "
Department of Health,NHS Barnsley CCG,31/01/2018,C&M-PMS Prem Actual Rent,PRC DELEGATED CO-COMMISSIONING,NHS BARNSLEY CCG GP PRACTICE,20370773,"53,481.25 "
Department of Health,NHS Barnsley CCG,31/01/2018,C&M-PMS Prem Rates,PRC DELEGATED CO-COMMISSIONING,NHS BARNSLEY CCG GP PRACTICE,20370773,"2,716.00 "
Department of Health,NHS Barnsley CCG,31/01/2018,C&M-PMS QOF Aspiration,PRC DELEGATED CO-COMMISSIONING,NHS BARNSLEY CCG GP PRACTICE,20370773,"12,214.31 "
Department of Health,NHS Barnsley CCG,31/01/2018,C&M-GMS DES Minor Surgery,PRC DELEGATED CO-COMMISSIONING,NHS BARNSLEY CCG GP PRACTICE,20625964,"3,580.08 "
Department of Health,NHS Barnsley CCG,31/01/2018,C&M-GMS Global Sum,PRC DELEGATED CO-COMMISSIONING,NHS BARNSLEY CCG GP PRACTICE,20625964,"46,171.15 "
Department of Health,NHS Barnsley CCG,31/01/2018,C&M-GMS Prem Notional Rent,PRC DELEGATED CO-COMMISSIONING,NHS BARNSLEY CCG GP PRACTICE,20625964,"2,541.67 "
Department of Health,NHS Barnsley CCG,31/01/2018,C&M-GMS Prem Rates,PRC DELEGATED CO-COMMISSIONING,NHS BARNSLEY CCG GP PRACTICE,20625964,454.00 
Department of Health,NHS Barnsley CCG,31/01/2018,C&M-GMS QOF Aspiration,PRC DELEGATED CO-COMMISSIONING,NHS BARNSLEY CCG GP PRACTICE,20625964,"4,060.06 "
Department of Health,NHS Barnsley CCG,31/01/2018,Computer Software/License,ADMINISTRATION & BUSINESS SUPPORT,HEALTHCARE GATEWAY LTD,20293919,"30,796.38 "
Department of Health,NHS Barnsley CCG,31/01/2018,Apprenticeship Levy Payable,BALANCE SHEET,HMRC,20434602,732.00 
Department of Health,NHS Barnsley CCG,31/01/2018,Income tax <1Yr,BALANCE SHEET,HMRC,20434602,"60,011.12 "
Department of Health,NHS Barnsley CCG,31/01/2018,Income tax <1Yr-Student Loans,BALANCE SHEET,HMRC,20434602,"1,814.00 "
Department of Health,NHS Barnsley CCG,31/01/2018,National Insurance < 1 yr-NI- ERS,BALANCE SHEET,HMRC,20434602,"41,908.60 "
Department of Health,NHS Barnsley CCG,31/01/2018,National Insurance < 1 yr-NI-EES,BALANCE SHEET,HMRC,20434602,"30,173.82 "
Department of Health,NHS Barnsley CCG,31/01/2018,C&M-GMS DES Minor Surgery,PRC DELEGATED CO-COMMISSIONING,NHS BARNSLEY CCG GP PRACTICE,20625966,"1,747.42 "
Department of Health,NHS Barnsley CCG,31/01/2018,C&M-GMS Global Sum,PRC DELEGATED CO-COMMISSIONING,NHS BARNSLEY CCG GP PRACTICE,20625966,"83,456.64 "
Department of Health,NHS Barnsley CCG,31/01/2018,C&M-GMS Prem Healthcentre Rent,PRC DELEGATED CO-COMMISSIONING,NHS BARNSLEY CCG GP PRACTICE,20625966,"22,577.78 "
Department of Health,NHS Barnsley CCG,31/01/2018,C&M-GMS Prem Notional Rent,PRC DELEGATED CO-COMMISSIONING,NHS BARNSLEY CCG GP PRACTICE,20625966,"1,375.00 "
Department of Health,NHS Barnsley CCG,31/01/2018,C&M-GMS QOF Aspiration,PRC DELEGATED CO-COMMISSIONING,NHS BARNSLEY CCG GP PRACTICE,20625966,"9,650.40 "
Department of Health,NHS Barnsley CCG,31/01/2018,C&M-PMS Contract Value,PRC DELEGATED CO-COMMISSIONING,NHS BARNSLEY CCG GP PRACTICE,20400794,"48,688.98 "
Department of Health,NHS Barnsley CCG,31/01/2018,C&M-PMS Funding Differential Review,PRC DELEGATED CO-COMMISSIONING,NHS BARNSLEY CCG GP PRACTICE,20400794,"1,500.83 "
Department of Health,NHS Barnsley CCG,31/01/2018,C&M-PMS Prem Healthcentre Rent,PRC DELEGATED CO-COMMISSIONING,NHS BARNSLEY CCG GP PRACTICE,20400794,"6,045.20 "
Department of Health,NHS Barnsley CCG,31/01/2018,C&M-PMS Prem Notional Rent,PRC DELEGATED CO-COMMISSIONING,NHS BARNSLEY CCG GP PRACTICE,20400794,"3,583.33 "
Department of Health,NHS Barnsley CCG,31/01/2018,C&M-PMS QOF Aspiration,PRC DELEGATED CO-COMMISSIONING,NHS BARNSLEY CCG GP PRACTICE,20400794,"4,640.02 "
Department of Health,NHS Barnsley CCG,31/01/2018,ME-PMS GP Pension EEs Adjs - PMS,PRC DELEGATED CO-COMMISSIONING,NHS BARNSLEY CCG GP PRACTICE,20400794,857.25 
Department of Health,NHS Barnsley CCG,31/01/2018,ME-PMS GP Pension ERs Adjs - PMS,PRC DELEGATED CO-COMMISSIONING,NHS BARNSLEY CCG GP PRACTICE,20400794,"1,325.52 "
Department of Health,NHS Barnsley CCG,31/01/2018,External Data Contracts,BUSINESS INFORMATICS,KIER BUSINESS SERVICES LTD,20387796,"14,111.00 "
Department of Health,NHS Barnsley CCG,31/01/2018,External Data Contracts,COMMISSIONING SCHEMES,KIER BUSINESS SERVICES LTD,20387796,"15,218.00 "
Department of Health,NHS Barnsley CCG,31/01/2018,Telecoms-Data lines,PRIMARY CARE IT,KIER BUSINESS SERVICES LTD,20387796,"49,324.00 "
Department of Health,NHS Barnsley CCG,31/01/2018,C&M-PMS Baseline Adjustment,PRC DELEGATED CO-COMMISSIONING,KINGSWELL SURGERY,20372776,693.00 
Department of Health,NHS Barnsley CCG,31/01/2018,C&M-PMS Contract Value,PRC DELEGATED CO-COMMISSIONING,NHS BARNSLEY CCG GP PRACTICE,20372776,"26,772.74 "
Department of Health,NHS Barnsley CCG,31/01/2018,C&M-PMS Prem Notional Rent,PRC DELEGATED CO-COMMISSIONING,NHS BARNSLEY CCG GP PRACTICE,20372776,"4,458.33 "
Department of Health,NHS Barnsley CCG,31/01/2018,C&M-PMS Prem Rates,PRC DELEGATED CO-COMMISSIONING,NHS BARNSLEY CCG GP PRACTICE,20372776,875.00 
Department of Health,NHS Barnsley CCG,31/01/2018,C&M-PMS QOF Aspiration,PRC DELEGATED CO-COMMISSIONING,NHS BARNSLEY CCG GP PRACTICE,20372776,"2,071.11 "
Department of Health,NHS Barnsley CCG,31/01/2018,C&M-PMS Cost of Drugs -Dispensing,LOCAL ENHANCED SERVICES,NHS BARNSLEY CCG GP PRACTICE,20649349,"28,435.01 "
Department of Health,NHS Barnsley CCG,31/01/2018,C&M-PMS Prof fees Dispensing,PRC DELEGATED CO-COMMISSIONING,NHS BARNSLEY CCG GP PRACTICE,20649349,"4,624.16 "
Department of Health,NHS Barnsley CCG,31/01/2018,C&M-PMS Prsc Chrgs Cll&Rmttd by GPs,LOCAL ENHANCED SERVICES,NHS BARNSLEY CCG GP PRACTICE,20649349,"1,436.20 "
Department of Health,NHS Barnsley CCG,31/01/2018,C&M-APMS Contract Value,PRC DELEGATED CO-COMMISSIONING,NHS BARNSLEY CCG GP PRACTICE,20370778,"18,856.62 "
Department of Health,NHS Barnsley CCG,31/01/2018,C&M-APMS OOH Opt Outs,PRC DELEGATED CO-COMMISSIONING,NHS BARNSLEY CCG GP PRACTICE,20370778,8.14 
Department of Health,NHS Barnsley CCG,31/01/2018,C&M-APMS Prem Healthcentre Rent,PRC DELEGATED CO-COMMISSIONING,NHS BARNSLEY CCG GP PRACTICE,20370778,"4,802.71 "
Department of Health,NHS Barnsley CCG,31/01/2018,C&M-PMS DES Learn Dsblty Hlth Chk,PRC DELEGATED CO-COMMISSIONING,NHS BARNSLEY CCG GP PRACTICE,20370778,280.00 
Department of Health,NHS Barnsley CCG,31/01/2018,C&M-PMS Prem Healthcentre Rent,PRC DELEGATED CO-COMMISSIONING,NHS BARNSLEY CCG GP PRACTICE,20370778,"4,756.91 "
Department of Health,NHS Barnsley CCG,31/01/2018,C&M-PMS QOF Aspiration,PRC DELEGATED CO-COMMISSIONING,NHS BARNSLEY CCG GP PRACTICE,20370778,"1,598.13 "
Department of Health,NHS Barnsley CCG,31/01/2018,Hcare Srv Rec NHS Trust-CQUIN,ACUTE COMMISSIONING,MID YORKSHIRE HOSPITALS NHS TRUST,20387794,"2,197.00 "
Department of Health,NHS Barnsley CCG,31/01/2018,Hcare Srv Rec NHS Trust-Contract Baseline,ACUTE COMMISSIONING,MID YORKSHIRE HOSPITALS NHS TRUST,20387794,"206,053.00 "
Department of Health,NHS Barnsley CCG,31/01/2018,Bldg/Eng Equip Maint Cont,ADMINISTRATION & BUSINESS SUPPORT,NHS PROPERTY SERVICES LTD,20422845,"5,664.13 "
Department of Health,NHS Barnsley CCG,31/01/2018,Non-PFI Oprtng Lease-Bldgs-Lease Rent,ADMINISTRATION & BUSINESS SUPPORT,NHS PROPERTY SERVICES LTD,20422845,"20,797.18 "
Department of Health,NHS Barnsley CCG,31/01/2018,Service Charge,ADMINISTRATION & BUSINESS SUPPORT,NHS PROPERTY SERVICES LTD,20422845,"12,324.24 "
Department of Health,NHS Barnsley CCG,31/01/2018,Clinical&Medical-Commercial Sector,ACUTE COMMISSIONING,ONEHEALTH GROUP,20511779,"189,723.75 "
Department of Health,NHS Barnsley CCG,31/01/2018,Clinical&Medical-Commercial Sector,ACUTE COMMISSIONING,ONEHEALTH GROUP,20511781,"(54,039.96)"
Department of Health,NHS Barnsley CCG,31/01/2018,Clinical&Medical-Commercial Sector,ACUTE COMMISSIONING,PAIN MANAGEMENT SOLUTIONS LTD,20511771,"28,943.78 "
Department of Health,NHS Barnsley CCG,31/01/2018,Other Gen Supplies & Srv,PATIENT TRANSPORT,PREMIER CARE DIRECT LTD,20654929,"28,557.10 "
Department of Health,NHS Barnsley CCG,31/01/2018,Hcare Srv Rec Fdtn Trust-Contract Cost per Case,MENTAL HEALTH SERVICES - NOT CONTRACTED ACTIVITY,ROTHERHAM DONCASTER & SOUTH HUMBER MENTAL HEALTH NHS FOUNDATION TRUST,20422833,"38,598.24 "
Department of Health,NHS Barnsley CCG,31/12/2017,Hcare Srv Rec Fdtn Trust-CQUIN,ACUTE COMMISSIONING,ROTHERHAM NHS FOUNDATION TRUST,20251317,"5,842.00 "
Department of Health,NHS Barnsley CCG,31/12/2017,Hcare Srv Rec Fdtn Trust-Contract Baseline,ACUTE COMMISSIONING,ROTHERHAM NHS FOUNDATION TRUST,20251317,"420,949.00 "
Department of Health,NHS Barnsley CCG,31/12/2017,Hcare Srv Rec Fdtn Trust-CQUIN,COMMUNITY SERVICES,ROTHERHAM NHS FOUNDATION TRUST,20251313,"1,020.00 "
Department of Health,NHS Barnsley CCG,31/12/2017,Hcare Srv Rec Fdtn Trust-Contract Baseline,COMMUNITY SERVICES,ROTHERHAM NHS FOUNDATION TRUST,20251313,"40,787.00 "
Department of Health,NHS Barnsley CCG,31/01/2018,C&M-GMS DES Learn Dsblty Hlth Chk,PRC DELEGATED CO-COMMISSIONING,NHS BARNSLEY CCG GP PRACTICE,20629861,140.00 
Department of Health,NHS Barnsley CCG,31/01/2018,C&M-GMS DES Minor Surgery,PRC DELEGATED CO-COMMISSIONING,NHS BARNSLEY CCG GP PRACTICE,20629861,"1,022.88 "
Department of Health,NHS Barnsley CCG,31/01/2018,C&M-GMS Global Sum,PRC DELEGATED CO-COMMISSIONING,NHS BARNSLEY CCG GP PRACTICE,20629861,"59,311.00 "
Department of Health,NHS Barnsley CCG,31/01/2018,C&M-GMS Prem Actual Rent,PRC DELEGATED CO-COMMISSIONING,NHS BARNSLEY CCG GP PRACTICE,20629861,"8,873.23 "
Department of Health,NHS Barnsley CCG,31/01/2018,C&M-GMS Prem Rates,PRC DELEGATED CO-COMMISSIONING,NHS BARNSLEY CCG GP PRACTICE,20629861,"1,081.00 "
Department of Health,NHS Barnsley CCG,31/01/2018,C&M-GMS QOF Aspiration,PRC DELEGATED CO-COMMISSIONING,NHS BARNSLEY CCG GP PRACTICE,20629861,"7,778.41 "
Department of Health,NHS Barnsley CCG,31/01/2018,Hcare Srv Rec Fdtn Trust-CQUIN,ACUTE COMMISSIONING,SHEFFIELD CHILDRENS NHS FOUNDATION TRUST,20387856,"1,615.00 "
Department of Health,NHS Barnsley CCG,31/01/2018,Hcare Srv Rec Fdtn Trust-Contract Baseline,ACUTE COMMISSIONING,SHEFFIELD CHILDRENS NHS FOUNDATION TRUST,20387856,"134,793.00 "
Department of Health,NHS Barnsley CCG,31/01/2018,Hcare Srv Rec Fdtn Trust-Contract Baseline,ACUTE COMMISSIONING,SHEFFIELD TEACHING HOSPITALS NHS FOUNDATION TRUST,20422809,"1,852,829.00 "
Department of Health,NHS Barnsley CCG,31/01/2018,Hcare Srv Rec Fdtn Trust-Contract Baseline,ACUTE COMMISSIONING,SHEFFIELD TEACHING HOSPITALS NHS FOUNDATION TRUST,20422826,"174,257.00 "
Department of Health,NHS Barnsley CCG,31/01/2018,Hcare Srv Rec Fdtn Trust-CQUIN,ACUTE COMMISSIONING,SHEFFIELD TEACHING HOSPITALS NHS FOUNDATION TRUST,20422849,"123,708.00 "
Department of Health,NHS Barnsley CCG,31/01/2018,Hcare Srv Rec Fdtn Trust-CQUIN,COMMUNITY SERVICES,SOUTH WEST YORKSHIRE PARTNERSHIP NHS FOUNDATION TRUST,20386753,"19,542.00 "
Department of Health,NHS Barnsley CCG,31/01/2018,Hcare Srv Rec Fdtn Trust-CQUIN,LEARNING DIFFICULTIES,SOUTH WEST YORKSHIRE PARTNERSHIP NHS FOUNDATION TRUST,20386753,"2,013.00 "
Department of Health,NHS Barnsley CCG,31/01/2018,Hcare Srv Rec Fdtn Trust-CQUIN,MENTAL HEALTH SERVICES - ADULTS,SOUTH WEST YORKSHIRE PARTNERSHIP NHS FOUNDATION TRUST,20386753,"2,709.00 "
Department of Health,NHS Barnsley CCG,31/01/2018,Hcare Srv Rec Fdtn Trust-CQUIN,MENTAL HEALTH SERVICES - OLDER PEOPLE,SOUTH WEST YORKSHIRE PARTNERSHIP NHS FOUNDATION TRUST,20386753,"26,835.00 "
Department of Health,NHS Barnsley CCG,31/01/2018,Hcare Srv Rec Fdtn Trust-Contract Baseline,COMMUNITY SERVICES,SOUTH WEST YORKSHIRE PARTNERSHIP NHS FOUNDATION TRUST,20386753,"1,452,961.00 "
Department of Health,NHS Barnsley CCG,31/01/2018,Hcare Srv Rec Fdtn Trust-Contract Baseline,LEARNING DIFFICULTIES,SOUTH WEST YORKSHIRE PARTNERSHIP NHS FOUNDATION TRUST,20386753,"190,611.00 "
Department of Health,NHS Barnsley CCG,31/01/2018,Hcare Srv Rec Fdtn Trust-Contract Baseline,MENTAL HEALTH SERVICES - ADULTS,SOUTH WEST YORKSHIRE PARTNERSHIP NHS FOUNDATION TRUST,20386753,"216,736.00 "
Department of Health,NHS Barnsley CCG,31/01/2018,Hcare Srv Rec Fdtn Trust-Contract Baseline,MENTAL HEALTH SERVICES - OLDER PEOPLE,SOUTH WEST YORKSHIRE PARTNERSHIP NHS FOUNDATION TRUST,20386753,"2,146,829.00 "
Department of Health,NHS Barnsley CCG,31/01/2018,Hlthcre-Foundation Trsts,COMMUNITY SERVICES,SOUTH WEST YORKSHIRE PARTNERSHIP NHS FOUNDATION TRUST,20387758,"586,546.00 "
Department of Health,NHS Barnsley CCG,31/01/2018,Clinical&Medical-Voluntary Sector,COMMUNITY SERVICES,SOUTH YORKSHIRE HOUSING ASSOCIATION LTD,20687433,"75,290.19 "
Department of Health,NHS Barnsley CCG,31/01/2018,Clinical&Medical-Commercial Sector,NCAS/OATS,SPAMEDICA LTD,20595943,"41,949.29 "
Department of Health,NHS Barnsley CCG,31/12/2017,Clinical&Medical-Commercial Sector,NCAS/OATS,SPAMEDICA LTD,20251207,"55,060.97 "
Department of Health,NHS Barnsley CCG,31/01/2018,C&M-PMS Contract Value,PRC DELEGATED CO-COMMISSIONING,NHS BARNSLEY CCG GP PRACTICE,20370776,"71,213.02 "
Department of Health,NHS Barnsley CCG,31/01/2018,C&M-PMS Out of Hours Opt Outs,PRC DELEGATED CO-COMMISSIONING,NHS BARNSLEY CCG GP PRACTICE,20370776,34.92 
Department of Health,NHS Barnsley CCG,31/01/2018,C&M-PMS PCO Other,PRC DELEGATED CO-COMMISSIONING,NHS BARNSLEY CCG GP PRACTICE,20370776,"4,526.00 "
Department of Health,NHS Barnsley CCG,31/01/2018,C&M-PMS Prem Actual Rent,PRC DELEGATED CO-COMMISSIONING,NHS BARNSLEY CCG GP PRACTICE,20370776,336.75 
Department of Health,NHS Barnsley CCG,31/01/2018,C&M-PMS Prem Healthcentre Rent,PRC DELEGATED CO-COMMISSIONING,NHS BARNSLEY CCG GP PRACTICE,20370776,"17,485.37 "
Department of Health,NHS Barnsley CCG,31/01/2018,C&M-PMS QOF Aspiration,PRC DELEGATED CO-COMMISSIONING,NHS BARNSLEY CCG GP PRACTICE,20370776,"6,823.95 "
Department of Health,NHS Barnsley CCG,31/01/2018,C&M-PMS Contract Value,PRC DELEGATED CO-COMMISSIONING,NHS BARNSLEY CCG GP PRACTICE,20372774,"40,734.42 "
Department of Health,NHS Barnsley CCG,31/01/2018,C&M-PMS Prem Healthcentre Rent,PRC DELEGATED CO-COMMISSIONING,NHS BARNSLEY CCG GP PRACTICE,20372774,"1,189.84 "
Department of Health,NHS Barnsley CCG,31/01/2018,C&M-PMS Prem Notional Rent,PRC DELEGATED CO-COMMISSIONING,NHS BARNSLEY CCG GP PRACTICE,20372774,"28,675.00 "
Department of Health,NHS Barnsley CCG,31/01/2018,C&M-PMS Prem Rates,PRC DELEGATED CO-COMMISSIONING,NHS BARNSLEY CCG GP PRACTICE,20372774,"1,350.00 "
Department of Health,NHS Barnsley CCG,31/01/2018,C&M-PMS QOF Aspiration,PRC DELEGATED CO-COMMISSIONING,NHS BARNSLEY CCG GP PRACTICE,20372774,"4,470.13 "
Department of Health,NHS Barnsley CCG,31/01/2018,ME - PMS TPS Added Years Adj EEs,PRC DELEGATED CO-COMMISSIONING,NHS BARNSLEY CCG GP PRACTICE,20372774,720.73 
Department of Health,NHS Barnsley CCG,31/01/2018,ME-PMS GP Pension EEs-PMS,PRC DELEGATED CO-COMMISSIONING,NHS BARNSLEY CCG GP PRACTICE,20372774,"1,244.51 "
Department of Health,NHS Barnsley CCG,31/01/2018,ME-PMS GP Pension ERs Adjs - PMS,PRC DELEGATED CO-COMMISSIONING,NHS BARNSLEY CCG GP PRACTICE,20372774,"1,151.56 "
Department of Health,NHS Barnsley CCG,31/01/2018,Hcare Srv Rec NHS Trust-Contract Baseline,AMBULANCE SERVICES,YORKSHIRE AMBULANCE SERVICE NHS TRUST,20386744,"627,034.00 "
Department of Health,NHS Barnsley CCG,31/01/2018,Hcare Srv Rec NHS Trust-Contract Baseline,NHS 111,YORKSHIRE AMBULANCE SERVICE NHS TRUST,20386747,"49,017.33 "
Department of Health,NHS Barnsley CCG,31/01/2018,Hcare Srv Rec NHS Trust-Contract Baseline,PATIENT TRANSPORT,YORKSHIRE AMBULANCE SERVICE NHS TRUST,20386749,"129,241.20 "
Department of Health,NHS Barnsley CCG,31/01/2018,Hcare Srv Rec NHS Trust-Contract Baseline,AMBULANCE SERVICES,YORKSHIRE AMBULANCE SERVICE NHS TRUST,20387848,"52,000.00 "
,,,,,,,"22,662,500.81 "
